Cogmind - Beta 17 @@@ ROGUE MODE // 2026.07.21 @ 11:28:53 Player: Zish Result: Self-destructed Performance ------------- Evolutions (1) 500 Regions Visited (2) 400 Robots Destroyed (18) 90 Value Destroyed (462) 462 Prototype IDs (1) 20 Alien Tech Used (0) 0 Bonus (5750) 5750 TOTAL SCORE: 7222 Bonus ------- Prayed to X0-1V1 5000 Major X0-1V1 Interference 750 Cogmind --------- Core Integrity 258/325 Matter 801/900 Energy 838/1450 System Corruption 0% Temperature Cool (6) Movement Treading (480) Ox4 Location -9/Materials Parts ------- > --- POWER (1) -------- Ion Engine > --- PROPULSION (3) --- Light Treads > --- UTILITY (3) ------ Huge Storage Unit > --- WEAPON (2) ------- Light Cannon > --- INVENTORY (25) --- Ion Engine Small Storage Unit Pulse Rifle Pulse Rifle Shotgun Light Cannon Light Cannon Light Cannon Light Cannon Datajack Peak State ------------ > --- POWER ------------ Ion Engine > --- PROPULSION ------- Light Treads Light Treads > --- UTILITY ---------- Huge Storage Unit Propulsion Shielding X0-1V1's Piety Tracker > --- WEAPON ----------- Light Cannon Light Cannon > --- INVENTORY -------- Ion Engine Small Storage Unit Pulse Rifle Pulse Rifle Shotgun Light Cannon Light Cannon Light Cannon Light Cannon Light Cannon Datajack [Rating: 21] Favorites ----------- Power Ion Engine Engine Ion Engine Propulsion Light Treads Treads Light Treads Utility Medium Storage Unit Device X0-1V1's Piety Tracker Storage Medium Storage Unit Protection Propulsion Shielding Weapon Light Cannon Energy Gun EM Pulse Gun Ballistic Gun Light Assault Rifle Ballistic Cannon Light Cannon Build | -11 -10 -9 ------- Run | Yrd Mat Mat Slots Evolved 2 | . . 2 Power . | . . . Propulsion 1 | . . 1 Utility 1 | . . 1 Weapon . | . . . Parts Attached 15 | 7 6 2 Power 1 | 1 . . Engine 1 | 1 . . Core . | . . . Reactor . | . . . Propulsion 2 | 2 . . Treads 2 | 2 . . Leg . | . . . Wheel . | . . . Hover . | . . . Flight . | . . . Utility 5 | 1 3 1 Device 1 | . 1 . Storage 3 | 1 2 . Processor . | . . . Hackware . | . . . Protection 1 | . . 1 Artifact . | . . . Weapon 7 | 3 3 1 Energy Gun 1 | 1 . . Energy Cannon . | . . . Ballistic Gun 2 | 2 . . Ballistic Cannon 4 | . 3 1 Launcher . | . . . Special Weapon . | . . . Impact Weapon . | . . . Slashing Weapon . | . . . Piercing Weapon . | . . . Special Melee Weapon . | . . . Unidentified Prototypes 1 | . 1 . Parts Lost 5 | . . 5 Power . | . . . Propulsion 1 | . . 1 Utility 2 | . . 2 Weapon 2 | . . 2 Highest Loss Streak 5 | . . 5 To Critical Strikes . | . . . Average Backups 7 | . 7 10 Power . | . 1 1 Propulsion . | . . . Utility 1 | . 1 1 Weapon 4 | . 4 6 Tool/Special . | . . . Unused Backups 8 | . . 8 Power 1 | . . 1 Propulsion . | . . . Utility . | . . . Weapon 6 | . . 6 Tool/Special 1 | . . 1 Average Slot Usage (%) 87 | . 90 78 Engine 13 | . 14 11 Treads 26 | . 28 22 Device 6 | . 5 9 Storage 13 | . 14 11 Ballistic Cannon 24 | . 25 21 Peak Build Rating 21 | 6 20 21 Average Rating 11 | 4 10 18 On Entrance 8 | . 6 19 Avg Prop Armor Cover (%) . | . . . Naked Turns . | . . . Heaviest Build 93 | 13 92 93 Greatest Support 40 | 40 40 40 Greatest Overweight (x) 2 | . 2 2 Average Overweight (x) . | . . 2 Largest Inventory Capacity 25 | 8 25 25 Average Capacity 15 | 7 14 25 Most Carried 12 | 1 10 12 Average Carried 7 | . 8 10 Final Capacity 25 | 8 25 25 Final Carried 10 | 1 9 10 Class Distribution -------------------- 100% | Mutant Dominant Class ---------------- Mutant | -10/Materials Mutant | -9/Materials Resources | -11 -10 -9 ----------- Run | Yrd Mat Mat Matter Collected 507 | 209 298 . Remotely . | . . . Salvage Created 500 | . 318 182 Parts 38 | . 24 14 Haulers Intercepted 1 | . 1 . Recyclers Shooed . | . . . Parts Field Recycled . | . . . Retrieved Matter . | . . . Parts Self-Destructed . | . . . Prevented . | . . . Parts Restored . | . . . Kills | -11 -10 -9 ------- Run | Yrd Mat Mat Combat Hostiles Destroyed 14 | . 10 4 Cannons 14 | . 10 4 Classes Destroyed 7 | . 6 1 Worker 1 | . 1 . Builder 1 | . 1 . Hauler 1 | . 1 . Operator 1 | . 1 . Swarmer 3 | . 3 . Grunt 10 | . 7 3 Sentry 1 | . . 1 Best Kill Streak 9 | . 9 4 Combat Bots Only 6 | . 6 4 Max Kills in Single Turn 1 | . 1 1 Gunslinging . | . . . Exploded . | . . . Melee . | . . . Uniques/NPCs Destroyed . | . . . Combat | -11 -10 -9 -------- Run | Yrd Mat Mat Hostile Shots Fired 100 | . 38 62 Missed 37 | . 15 22 Hits 63 | . 23 40 Projectile 63 | . 23 40 Critical Strikes 1 | . . 1 Damage Taken 848 | . 232 616 Core 122 | . 55 67 Absorbed by Shields . | . . . Redirected to Shielding 52 | . . 52 Core Remaining (%) 89 | 100 78 . Volleys Fired 46 | . 31 15 Largest 2 | . 2 2 Hottest 60 | . 60 60 Shots Fired 91 | . 61 30 Gun . | . . . Cannon 91 | . 61 30 Launcher . | . . . Special . | . . . Kinetic 91 | . 61 30 Thermal . | . . . Explosive . | . . . Electromagnetic . | . . . Robot Hit Streak 6 | . 6 5 Robot Miss Streak 6 | . 5 6 Penetration Max . | . . . Secondary Targets . | . . . Shots Hit Robots 40 | . 27 13 Core Hits 21 | . 14 7 Critical Kills . | . . . Critical Parts Destroyed . | . . . Critical Strikes 1 | . . 1 Blast 1 | . . 1 Melee Attacks . | . . . Impact . | . . . Slashing . | . . . Piercing . | . . . Sneak Attacks . | . . . Combat Hostiles . | . . . Follow-up Attacks . | . . . Damage Inflicted 731 | . 498 233 Guns . | . . . Cannons 731 | . 498 233 Explosions . | . . . Melee . | . . . Ramming . | . . . Kinetic 731 | . 498 233 Thermal . | . . . Explosive . | . . . Electromagnetic . | . . . Impact . | . . . Slashing . | . . . Piercing . | . . . Highest Corruption 1 | . 1 . Average Corruption 1 | . 1 . Corruption Purged . | . . . Corruption Blocked . | . . . Effects 3 | . 3 . Message Errors 1 | . 1 . Energy Discharges 1 | . 1 . Parts Rejected 1 | . 1 . Overload Shots . | . . . Overflow Damage 7 | . 7 . Projectiles 7 | . 7 . Explosions . | . . . Melee . | . . . Knockbacks 6 | . 4 2 Impact . | . . . Kinetic 6 | . 4 2 Secondary . | . . . Self-Inflicted Damage . | . . . Shots . | . . . Rammed . | . . . Targets Rammed . | . . . Kicked . | . . . Crushed . | . . . Highest Temperature 234 | . 60 234 Average Temperature 45 | . 24 109 Received Heat Transfer 306 | . 102 204 Siege Activations . | . . . Martial Activations . | . . . Shielding Activations . | . . . Robots Disrupted . | . . . Combat Hostiles . | . . . Robots Corrupted . | . . . Combat Hostiles . | . . . Parts Fried . | . . . Impact Corruptions . | . . . Robots Melted . | . . . Combat Hostiles . | . . . Parts Melted . | . . . Heat Transferred . | . . . Parts Sabotaged . | . . . Parts Stolen . | . . . Parts Stripped . | . . . Power Chain Reactions . | . . . Alert | -11 -10 -9 ------- Run | Yrd Mat Mat Maximum Alert Level . | . . . Low Security (%) 100 | 100 100 100 Level 1 . | . . . Level 2 . | . . . Level 3 . | . . . Level 4 . | . . . Level 5 . | . . . High Security . | . . . Max Security . | . . . Peak Influence 187 | . 187 93 Initial 31 | . . 31 Average 57 | . 71 23 Influence Increases 402 | . 279 123 Destroy 0b10 Robot/C 280 | . 200 80 Destroy 0b10 Robot/NC 25 | . 20 5 Destroy Leader 74 | . 52 22 Successful Hack 6 | . 6 . Disable Machine 15 | . . 15 Destroy Structure 2 | . 1 1 Influence Decreases 359 | . 204 155 Entered New Map 44 | . . 44 Time Decay 265 | . 204 61 Lost Part 50 | . . 50 Squads Dispatched 5 | . 4 1 Investigation 3 | . 3 . Extermination . | . . . Reinforcement 2 | . 1 1 Assault . | . . . Garrison . | . . . Intercept . | . . . Searches Triggered . | . . . Construction Impeded . | . . . Haulers Reinforced . | . . . Active Scanning Responses . | . . . Cargo Convoy Interrupts . | . . . Stealth | -11 -10 -9 --------- Run | Yrd Mat Mat Distress Signals 2 | . . 2 Communications Jammed . | . . . Distress Signals . | . . . Times Spotted 29 | . 17 12 Peak Tracking Total 9 | . 5 9 Tactical Retreats . | . . . Traps | -11 -10 -9 ------- Run | Yrd Mat Mat Traps Triggered 2 | . 2 . Indirectly . | . . . Trap Hack Attempts . | . . . Triggered . | . . . Disarmed . | . . . Reprogrammed . | . . . Reused . | . . . Traps Extracted . | . . . Installed . | . . . Triggered . | . . . Machines | -11 -10 -9 ---------- Run | Yrd Mat Mat Machines Disabled 1 | . . 1 Max in Single Turn 1 | . . 1 Machines Repaired . | . . . Machines Dismantled . | . . . Machines Sabotaged . | . . . Overloaded Fab Kills . | . . . Hacking | -11 -10 -9 --------- Run | Yrd Mat Mat Machines Accessed 1 | . 1 . Terminals 1 | . 1 . Fabricators . | . . . Repair Stations . | . . . Recycling Units . | . . . Scanalyzers . | . . . Garrison Access . | . . . Total Hacks 3 | . 3 . Successful 1 | . 1 . Failed 2 | . 2 . Catastrophic 1 | . 1 . Database Lockouts . | . . . Manual 4 | . 4 . Terminals 3 | . 3 . Fabricators . | . . . Repair Stations . | . . . Recycling Units . | . . . Scanalyzers . | . . . Garrison Access . | . . . Terminal Hacks . | . . . Fabricator Hacks . | . . . Repair Station Hacks . | . . . Recycling Unit Hacks . | . . . Scanalyzer . | . . . Garrison Access Hacks . | . . . Unauthorized Hacks 1 | . 1 . Terminals 1 | . 1 . Operators 1 | . 1 . Fabricators . | . . . Repair Stations . | . . . Recycling Units . | . . . Scanalyzers . | . . . Garrison Access . | . . . Data Cores Recovered . | . . . Used . | . . . Hacking Detections 1 | . 1 . Full Trace Events 1 | . 1 . Feedback Events 1 | . 1 . Corruption 1 | . 1 . Feedback Blocked . | . . . Robot Schematics Acquired . | . . . Robots Built . | . . . Authchips . | . . . Time . | . . . Total Robot Build Rating . | . . . Part Schematics Acquired . | . . . Parts Built . | . . . Authchips . | . . . Time . | . . . Total Part Build Rating . | . . . Part Studies Acquired . | . . . Parts Repaired . | . . . Time . | . . . Parts Recycled . | . . . Recycled Matter . | . . . Retrieved Matter . | . . . Retrieved Components . | . . . Parts Scanalyzed . | . . . Part Schematics Acquired . | . . . Parts Damaged . | . . . Bothacking | -11 -10 -9 ------------ Run | Yrd Mat Mat Used RIF Installer . | . . . Robots Hacked . | . . . Non-combat . | . . . Combat . | . . . Robot Hacks Applied . | . . . Relay Couplers Released . | . . . Fabnet Peak Effective % . | . . . Robots Rewired . | . . . Allies Hacked . | . . . Hacks Repelled . | . . . Allies | -11 -10 -9 -------- Run | Yrd Mat Mat Total Allies . | . . . Largest Group . | . . . Highest-Rated Group . | . . . Highest-Rated Ally . | . . . Total Orders . | . . . Ally Attacks . | . . . Total Damage . | . . . Kills . | . . . Allies Corrupted . | . . . Allies Melted . | . . . X0-1V1 Amusement Gains 16 | . 4 12 Good Acts 11 | . . 11 Bad Acts 4 | . . 4 Intel | -11 -10 -9 ------- Run | Yrd Mat Mat Active Infowar (turns) . | . . . Robot Analysis Total . | . . . Derelict Logs Recovered . | . . . Drone Launches . | . . . Drone Recoveries . | . . . Exploration | -11 -10 -9 ------------- Run | Yrd Mat Mat Turns Passed 902 | 76 666 160 Spaces Moved 346 | 44 267 35 Core 5 | 5 . . Treads 341 | 39 267 35 Legs . | . . . Wheels . | . . . Hover . | . . . Flight . | . . . Fastest Speed 50 | 50 160 320 Average Speed 199 | 147 192 320 Slowest Speed 320 | 160 320 320 Overloaded Moves . | . . . Propulsion Burnouts . | . . . Robots Hopped . | . . . Potential Cave-ins . | . . . Cave-ins Triggered . | . . . Exploration Rate (%) 22 | 4 47 16 Regions Visited 2 Branch Regions . Pre-discovered Areas . | . . . Known Exits Taken . | . . . Unknown Exits Taken 2 | 1 1 . Scrap Searched . | . . . Spaces Dug . | . . . Terrain Destroyed 1 | . . 1 Melee . | . . . Projectile 1 | . . 1 AOE . | . . . Terrain Rammed . | . . . Walls Destroyed . | . . . Machines Disabled . | . . . Actions | -11 -10 -9 --------- Run | Yrd Mat Mat Total 466 | 52 361 53 Wait 44 | . 44 . Move 344 | 43 266 35 Hop . | . . . Pick Up 11 | 2 8 1 Fast Attach 9 | 5 4 . Attach 4 | 1 1 2 Detach 3 | . 3 . Swap 2 | 1 1 . Drop 3 | . 3 . Fire 46 | . 31 15 Melee . | . . . Ram . | . . . Kick . | . . . Crush . | . . . Escape Stasis . | . . . Rewire . | . . . Trap . | . . . Miscellaneous . | . . . Route ------- -11/Scrapyard -10/Materials (discovered 2 exits: [*Mat] / [*Sub]) -9/Materials (discovered 2 exits: Mat / [*Sto]) History --------- Turn | Location | Event 46 | -11/Scrapyard | Discovered new exit (range 16) 77 | -11/Scrapyard | Entered Materials 301 | -10/Materials | Build established: Mutant 435 | -10/Materials | Discovered new exit (range 11) 491 | -10/Materials | Prayed at D.C.S.S. Altar Unit 668 | -10/Materials | Discovered new exit (range 16) 743 | -10/Materials | Entered another Materials area 743 | -9/Materials | Evolved 2 slots: Propulsion x1, Utility x1 786 | -9/Materials | Heat dissipation permanently improved by X0-1V1 (+15; -75 max core) 802 | -9/Materials | Identified exit to Materials 802 | -9/Materials | X0-1V1 revealed exit location to -8/Materials 840 | -9/Materials | X0-1V1 activates XOMVISION 878 | -9/Materials | Discovered new exit (range 14) 878 | -9/Materials | X0-1V1 vaporized surrounding terrain (radius 18) 903 | -9/Materials | Self-destructed Last Messages --------------- 00889_ U-05 Engineer builds a Wall. 00893_ U-05 Engineer lays Concrete. 00896_ K-01 Serf collects debris. 00896_ U-05 Engineer builds a Wall. 00900_ K-01 Serf collects debris. 00900_ U-05 Engineer lays Concrete. 00900_ Propulsion Shielding destroyed. 00901_ U-05 Engineer lays Concrete. 00902_ Lgt. Treads destroyed. 00902_ Lgt. Cannon destroyed. 00903_ X0-1V1 feels inspired! Y-45 Defender Beam Rifle replaced by Pulse Rifle. Y-45 Defender Hvy. Assault Rifle replaced by Prototype Ballistic Gun. G-34 Mercenary Sml. Laser replaced by Hvy. EM Pulse Gun. G-34 Mercenary Sml. Laser replaced by Spread Laser. 00903_ U-05 Engineer builds a Wall. Map ----- +----------------------------------------------------+ | ?????????????????????????????????????????????????? | | ?????????????????????????????????????????????????? | | ?????????????????????????????????????????????????? | | ?????????????????????????????????????????????????? | | ?????????????????????????????????????????????????? | | ?????????????????????????????????????????????????? | | ?????????????????????????????????????????????????? | | ???????????????????????? ""???????????????????## | | ??????????????????????"; ;" ?????????????????# | | ???????????????????" ;; ; ??????????????# | | ?????????????????""" ;; ; ????????????# | | ?????????????? u ;; < + "?????????# | | ?????????????""#""";;;; [%; ""????????# | | ????????????? k ;; =% ; ! " ????????# | | ????????????; ] ;;; Yg;; [ " ????????# | | ????????????; ; ;% ;;;;""""""""""######?# | | ??????????? ; ; ; ; " # | | ??????????? ; ; ; ; " "" # | | ?????????? ; ==" ; g; " " + | | ??????????? ;k [ =[" ; ; ; [ " # | | ?????????? " w " ; ; ; # | | ????????? ; " ; ; ;;;;;;;"""#### | | ?????????;;;;;;;;+;;;;## ###;;;;;;;;;;;;""""## | | ???????? w u % | | ?????????"" *! [ | | ??????????????" """"" @ %%[ %% | | ????????????????"""""" =!;;;;;;;;;;;;"""## | | ????????????????" """ ; #???### | | ????????r??????? [*= ! ; ??????? | | ?????????????? [%= ; #??????? | | ????????????? % ; #??????? | | ???????????? ;;;;;;;;;;;;;;;; ???????? | | ??????????? ;;;; ; Y; ????????? | | ??????????? """; ; """ """ """ ;; ????????? | | ??????????? "; ; """ """ """ ; ?????????? | | ?????????????? |"; ; """ """ ""??? ?????????? | | ???????????????""; ; ?? ???? ?????????? | | ???????????????|"; ; ??? ??????????????????? | | ????????????????"; ;;????;;??????????????????? | | ????????????????"; a ;;????T"??????????????????? | | ?????????????????? ;#u????o??????????????????? | | ????????????????????? #???????[????????????????? | | ??????????????????????? ?????????????????????????? | | ?????????????????????????????????????????????????? | | ?????????????????????????????????????????????????? | | ?????????????????????????????????????????????????? | | ?????????????????????????????????????????????????? | | ?????????????????????????????????????????????????? | | ?????????????????????????????????????????????????? | | ?????????????????????????????????????????????????? | +----------------------------------------------------+ Best States ------------- Heat Dissipation 43 Energy Generation 10 Energy Capacity 1450 Matter Stores 874 Matter Capacity 900 Sight Range 18 Terrain Scan Density 10 Propulsion Shielding 33 Evasion (%) 40 Recoil Reduction 2 Item Schematics ----------------- None Robot Schematics ------------------ None Fabricated ------------ Nothing Repaired ---------- Nothing Studied --------- None Alien Tech Used ----------------- None Achievements -------------- None Challenges ------------ None Game ------ Seed SmartDroneJammer Manual? 0 Play Time 00:05:21 Cumulative 47.6 hours Start 2026.07.21 @ 11:24:42 End 2026.07.21 @ 11:28:53 Sessions 1 Manual Loads 0 Difficulty Rogue Special Mode None Game No. 117 Rogue 117 Adventurer 0 Explorer 0 Win Type - Total 0 Types 0/0/0/0/0/0/0/0/0/0 Lore% 21 Gallery% 30 Achievement% 27 Wizard Run 0 Options --------- Layout 1 ASCII 0 Keyboard 1 Movement Vi Keybinds 0 Fullscreen 1 Font 24/Smallcaps Map View 50x35 Zoom Use 0% Tactical HUD 1 Map Filters NONE Filters NONE Steam 1 RUN: 2c7ac6ae-4886-45c2-99ee-ea3add9e46eb